bitfinex-derivatives/quotes_ETHF0:USTF0_20250606
["timestamp","ask_amount","ask_price","bid_price","bid_amount"]
[1749227919915,0.00597419,2510.1,2510.0,0.79621]
[1749227920311,0.00597419,2510.1,2510.0,5.79621]
[1749227920516,0.00597419,2510.1,2510.0,6.46631]
[1749227920819,24.087,2511.0,2510.9,0.79581]
[1749227921118,4.993,2511.1,2511.0,0.79579]
[1749227921323,23.702,2511.3,2511.2,0.79572]
[1749227921515,0.6607,2511.7,2511.0,1.98943]
[1749227921516,4.993,2511.4,2511.3,0.79569]
[1749227921712,24.49868,2511.4,2511.1,3.21377419]
[1749227921913,24.49868,2511.4,2511.1,4.00951419]
[1749227922518,0.7957,2511.3,2511.1,4.00951419]
[1749227922721,0.7957,2511.3,2511.1,3.21377419]
[1749227922921,0.7957,2511.3,2511.1,4.00951419]
[1749227923116,0.7957,2511.3,2511.1,3.21377419]
[1749227923318,0.7957,2511.3,2511.1,4.00952419]
[1749227923521,0.7957,2511.3,2511.2,0.79573]
[1749227923711,4.993,2511.4,2511.2,0.79572]
[1749227923910,0.79572,2511.3,2511.1,0.80172419]
[1749227924322,0.79572,2511.3,2511.2,0.79574]
[1749227924720,0.79572,2511.3,2511.1,0.80172419]
[1749227925020,0.79572,2511.3,2511.1,0.00597419]
[1749227925221,0.79574,2511.2,2511.1,0.00597419]
[1749227925422,0.79571,2511.3,2511.2,0.79572]
[1749227925618,0.79571,2511.3,2511.1,0.80171419]
[1749227926224,0.00597419,2511.6,2511.5,0.79564]
[1749227926423,4.99897419,2511.6,2511.5,0.79564]
[1749227926718,0.00597419,2511.6,2511.5,2.11194]
[1749227926920,4.988,2512.4,2511.6,1.98901]
[1749227927226,0.79548,2512.0,2511.9,3.2078]
[1749227927722,0.79557,2511.8,2511.7,0.79558]
[1749227927922,0.79557,2511.8,2511.6,0.79559]
[1749227928124,0.79558,2511.7,2511.5,5.1979]
[1749227928720,0.79558,2511.7,2511.6,0.79561]
[1749227929425,5.78947419,2512.0,2511.9,0.79551]
[1749227929718,0.00597419,2512.0,2511.9,4.00331]
[1749227930524,0.00597419,2512.0,2511.9,5.28051]
[1749227930722,5.78336,2512.4,2512.3,0.79539]
[1749227931221,3.89432,2512.8,2512.2,3.2078]
[1749227931222,0.79534,2512.5,2512.2,3.2078]
[1749227931414,0.79534,2512.5,2512.4,0.79534]
[1749227931615,0.79535,2512.4,2512.3,2.07257]
[1749227931911,0.79537,2512.4,2512.3,0.79536]
[1749227932315,0.79539,2512.3,2512.2,4.00319]
[1749227932919,0.79539,2512.3,2512.2,3.2078]
[1749227933121,0.79539,2512.3,2512.1,0.79543]
[1749227933122,0.79543,2512.2,2512.1,0.79544]
[1749227933712,0.79535,2512.5,2512.4,0.79534]
[1749227933917,21.9108,2512.6,2512.0,0.6746]
[1749227934128,0.79538,2512.4,2512.3,0.79538]
[1749227935025,0.79537,2512.4,2512.3,0.79538]
[1749227935620,0.79541,2512.3,2512.2,0.7954]
[1749227935823,0.79542,2512.3,2512.2,0.7954]
[1749227937234,0.79538,2512.4,2512.3,0.79536]
[1749227937927,0.79539,2512.4,2512.3,0.79537]
[1749227938329,0.79537,2512.4,2512.3,0.79535]
[1749227938530,21.9108,2512.6,2512.2,5.19631]
[1749227938723,0.00597419,2512.7,2512.6,0.79529]
[1749227938927,0.00597419,2512.7,2512.5,3.8531]
[1749227938928,0.80123419,2512.7,2512.5,3.8531]
[1749227939130,0.7953,2512.6,2512.5,6.631]
[1749227939428,0.7953,2512.6,2512.5,5.2803]
[1749227939628,0.7953,2512.6,2512.5,4.485]
[1749227940025,0.7953,2512.6,2512.5,3.8531]
[1749227941829,0.7953,2512.6,2512.4,0.80131419]
[1749227941830,0.79532,2512.5,2512.4,0.00597419]
[1749227942023,0.79532,2512.5,2512.4,0.80133419]
[1749227942525,0.79532,2512.5,2512.4,0.00597419]
[1749227946528,0.79532,2512.5,2512.4,4.19e-06]
[1749227946721,9.00312,2512.5,2512.4,4.19e-06]
[1749227947527,1.2601,2512.6,2512.4,4.19e-06]
[1749227947729,0.79533,2512.5,2512.4,0.79532419]
[1749227947931,0.79533,2512.5,2512.4,4.19e-06]
[1749227955931,0.79546,2512.1,2512.0,3.2078]
[1749227956239,0.79555,2511.8,2511.7,0.6701]
[1749227957127,0.79561,2511.7,2511.5,0.00597419]
[1749227957330,0.79561,2511.7,2511.6,0.79559]
[1749227957531,0.79562,2511.6,2511.5,0.80159419]
[1749227958136,0.79561,2511.7,2511.6,0.79559]
[1749227958432,0.79562,2511.6,2511.5,0.80160419]
[1749227958938,0.79562,2511.6,2511.5,0.00597419]
[1749227959234,5.77562,2511.6,2511.5,0.00597419]
[1749227959629,7.08372,2511.6,2511.5,0.0773077]
[1749227961440,0.79577,2511.1,2511.0,3.2078]
[1749227962129,0.79587,2510.8,2510.7,0.79588]
[1749227962323,0.79589,2510.8,2510.7,0.79589]
[1749227962531,0.7959,2510.7,2510.6,2.14051]
[1749227962835,0.7959,2510.7,2510.6,1.3446]
[1749227963028,0.7959,2510.7,2510.6,2.14053]
[1749227963231,0.79589,2510.7,2510.6,1.3446]
[1749227963732,0.79589,2510.7,2510.6,2.14053]
[1749227963938,0.79593,2510.6,2510.5,0.00597419]
[1749227965029,2.15313,2510.6,2510.5,0.00597419]
[1749227965226,7.15313,2510.6,2510.5,0.00597419]
[1749227965431,0.79612,2510.0,2509.9,0.6876]
[1749227966029,2.15332,2510.0,2509.9,0.6876]
[1749227967933,2.15332,2510.0,2509.9,1.48376]
[1749227968134,0.79612,2510.0,2509.9,1.48376]
[1749227968340,0.79612,2510.0,2509.9,0.6876]
[1749227968934,6.97126,2510.1,2509.7,0.00597419]
[1749227969128,1.2579,2510.0,2509.7,0.00597419]
[1749227969339,0.79619,2509.8,2509.7,0.80219419]
[1749227969542,0.79618,2509.9,2509.8,0.79618]
[1749227970341,0.79619,2509.8,2509.7,0.80218419]
[1749227970545,0.79618,2509.9,2509.8,0.79618]
[1749227973238,3.2078,2510.4,2510.0,0.79613]
[1749227973441,4.984,2510.3,2510.2,0.79607]
[1749227973639,23.68,2510.3,2510.2,0.79603]
[1749227973834,4.984,2510.3,2510.2,0.79603]
[1749227974046,4.984,2510.3,2510.1,1.46138]
[1749227974247,0.79607,2510.2,2510.1,1.46138]
[1749227974435,0.79607,2510.2,2510.1,0.6653]
[1749227974741,0.79607,2510.2,2510.1,0.79608]
[1749227974742,0.79611,2510.2,2510.1,0.79608]
[1749227974947,0.79613,2510.0,2509.9,4.47515]
[1749227975254,1.99021,2510.2,2509.8,0.73663351]
[1749227975547,1.3365,2510.2,2509.8,0.73663351]
[1749227975847,3.32669,2510.2,2509.8,0.73663351]
[1749227976049,0.79616,2509.9,2509.8,1.53280351]
[1749227976249,0.79615,2510.0,2509.9,0.79614]
[1749227976838,0.79616,2510.0,2509.9,0.79615]
[1749227977148,0.79616,2509.9,2509.8,1.53283351]
[1749227977337,5.78016,2509.9,2509.8,0.07133351]
[1749227981646,4.984,2509.9,2509.8,0.86753351]
[1749227981848,23.68,2509.9,2509.8,0.86753351]
[1749227982048,24.47617,2509.9,2509.8,1.52253351]
[1749227982239,24.47617,2509.9,2509.8,0.07133351]
[1749227983552,24.47617,2509.9,2509.8,0.86753351]
[1749227983850,23.68,2509.9,2509.8,0.86753351]
[1749227984050,24.47617,2509.9,2509.8,0.86753351]
[1749227984252,24.47616,2509.9,2509.8,0.86753351]
[1749227984451,24.47616,2509.9,2509.8,0.07133351]
[1749227984748,24.47716,2509.9,2509.8,0.07133351]
[1749227985243,0.79616,2509.9,2509.8,0.07133351]
[1749227985546,24.47716,2509.9,2509.8,0.86753351]
[1749227985753,24.47716,2509.9,2509.8,0.07133351]
[1749227986047,3.2078,2510.1,2509.8,0.07133351]
[1749227986348,24.47717,2510.0,2509.9,0.79615]
[1749227986744,1.99011,2510.3,2509.8,2.06180351]
[1749227986941,24.47007,2510.2,2510.1,0.7961]
[1749227987351,5.77507,2510.2,2510.1,0.7961]
[1749227987545,24.47007,2510.2,2510.1,0.7961]
[1749227987752,23.674,2510.2,2510.1,0.7961]
[1749227987952,24.88901,2510.4,2510.0,1.99034]
[1749227988154,0.79612,2510.1,2510.0,0.7961]
[1749227988453,0.79613,2510.0,2509.9,1.44245]
[1749227988647,0.79613,2510.0,2509.9,0.6463]
[1749227989057,0.79617,2509.9,2509.8,3.27913351]
[1749227989354,0.79617,2509.9,2509.8,3.2078]
[1749227989742,0.7962,2509.8,2509.7,0.00597419]
[1749227989942,4.004,2509.8,2509.7,0.00597419]
[1749227990149,6.6816,2509.8,2509.7,0.00597419]
[1749227990357,0.79639,2509.2,2509.1,1.3196]
[1749227990550,18.695,2509.2,2508.8,3.2078]
[1749227990852,0.79648,2508.9,2508.8,4.4849]
[1749227991248,0.79648,2508.9,2508.8,5.28141]
[1749227991448,0.00597419,2509.1,2508.8,5.28141]
[1749227991652,0.79648,2508.9,2508.8,5.28141]
[1749227991853,4.979,2508.9,2508.8,5.28141]
[1749227998065,5.77548,2508.9,2508.8,2.07361]
[1749227998764,4.979,2508.9,2508.8,2.07361]
[1749227998963,0.00597419,2509.1,2509.0,0.79645]
[1749227999158,4.98597419,2509.1,2509.0,0.79645]
[1749227999560,4.98597419,2509.1,2509.0,2.15905]
[1749228000158,0.79648,2508.9,2508.8,2.07359]
[1749228000357,0.79648,2508.9,2508.8,2.07361]
[1749228000861,0.00597419,2509.1,2509.0,0.79645]
[1749228001059,0.00597419,2509.1,2509.0,4.00425]
[1749228002876,0.79648,2509.0,2508.9,0.79646]
[1749228003175,0.79648,2508.9,2508.8,0.6272]
[1749228003466,2.08927,2509.0,2508.9,0.79648]
[1749228004263,0.79648,2508.9,2508.8,1.42371]
[1749228004561,0.79648,2508.9,2508.8,0.6272]
[1749228004766,0.79651,2508.8,2508.7,3.2078]
[1749228004962,5.77651,2508.8,2508.7,3.2078]
[1749228005870,5.77651,2508.8,2508.7,4.00435]
[1749228006065,5.77651,2508.8,2508.7,3.2078]
[1749228006260,0.79655,2508.7,2508.6,0.79657]
[1749228006664,4.98,2508.8,2508.7,0.79655]
[1749228007366,5.77651,2508.8,2508.7,0.79655]
[1749228008367,0.79658,2508.7,2508.6,0.79656]
[1749228008562,2.07288,2508.7,2508.6,0.79656]
[1749228009164,0.79658,2508.6,2508.5,2.10369]
[1749228009366,19.49058,2508.6,2508.5,0.6369]
[1749228009560,1.99154,2508.5,2508.1,0.6637]
[1749228009869,0.79671,2508.2,2508.1,0.6637]
[1749228010163,4.981,2508.4,2508.1,0.6637]
[1749228010375,4.981,2508.4,2508.3,0.79667]
[1749228010863,24.47064,2508.4,2508.3,0.79667]
[1749228011462,0.79667,2508.3,2508.2,0.7967]
[1749228011867,0.79671,2508.2,2508.1,0.6637]
[1749228012066,0.79674,2508.1,2508.0,3.8606]
[1749228012866,0.79674,2508.1,2508.0,0.6528]
[1749228013061,0.79683,2507.8,2507.7,4.66455]
[1749228013263,0.79683,2507.9,2507.8,0.79682]
[1749228013459,0.79683,2507.8,2507.7,1.3033]
[1749228014967,0.79683,2507.8,2507.7,0.6434]
[1749228015162,3.98402,2507.9,2507.1,3.2078]
[1749228015362,0.79702,2507.2,2507.1,4.00483]
[1749228015564,4.981,2507.3,2507.1,3.2078]
[1749228016366,0.79702,2507.2,2507.1,4.00483]
[1749228016567,5.77802,2507.3,2507.2,0.79702]
[1749228016762,4.981,2507.3,2507.1,4.00483]
[1749228017063,0.79702,2507.2,2507.1,4.00483]
[1749228017271,0.79709,2507.0,2506.9,0.6402]
[1749228017469,0.7971,2507.0,2506.8,1.43613]
[1749228017670,0.79712,2507.0,2506.8,1.43613]
[1749228017868,0.79712,2506.9,2506.8,0.639]
[1749228018263,0.79712,2506.9,2506.6,0.6696]
[1749228018264,0.79718,2506.7,2506.6,0.6696]
[1749228018762,0.79715,2506.8,2506.7,0.79716]
[1749228018963,0.79721,2506.6,2506.5,1.43385]
[1749228019367,0.79721,2506.7,2506.5,1.43385]
[1749228019666,0.79716,2506.8,2506.5,0.6366]
[1749228019871,24.47019,2506.7,2506.5,1.43382]
[1749228020068,5.77321,2506.6,2506.5,1.43382]
[1749228020771,4.976,2506.6,2506.5,1.43382]
[1749228020970,5.77321,2506.6,2506.5,0.6366]
[1749228021162,0.79725,2506.5,2506.4,3.2078]
[1749228021368,0.79728,2506.4,2506.3,0.6696]
[1749228022066,0.79728,2506.4,2506.3,1.46691]
[1749228022268,4.976,2506.6,2506.4,0.79727]
[1749228022464,6.3167,2506.6,2506.5,0.79725]
[1749228022668,6.3167,2506.6,2506.3,0.6696]
[1749228022669,0.79725,2506.5,2506.4,4.00505]
[1749228023066,3.2078,2506.8,2506.4,3.2078]
[1749228023268,0.79723,2506.6,2506.4,3.2078]
[1749228023565,27.3208,2507.4,2506.4,3.2078]
[1749228023770,4.978,2507.2,2507.1,0.79705]
[1749228023973,4.978,2507.2,2507.1,4.00485]
[1749228025278,5.77502,2507.2,2507.1,4.00485]
[1749228025469,4.978,2507.2,2507.1,4.00485]
[1749228025668,5.77502,2507.2,2507.1,4.00485]
[1749228026871,4.978,2507.2,2507.1,4.00485]
[1749228027079,5.77494,2507.6,2507.5,0.79691]
[1749228027682,4.978,2507.6,2507.2,1.3759]
[1749228027983,0.79702,2507.2,2507.1,3.2078]
[1749228028273,0.79705,2507.1,2507.0,1.3428]
[1749228028670,0.79705,2507.1,2507.0,2.13989]
[1749228029477,0.79705,2507.1,2507.0,1.47609]
[1749228029876,0.79711,2506.9,2506.8,4.07625351]
[1749228030276,1.3195,2507.1,2506.8,3.27913351]
[1749228030779,0.79711,2507.0,2506.9,0.7971]
[1749228031081,0.79711,2506.9,2506.8,4.07625351]
[1749228031373,0.79711,2506.9,2506.8,0.07133351]
[1749228031768,0.79711,2506.9,2506.8,0.86847351]
[1749228031974,0.79711,2506.9,2506.8,0.07133351]
[1749228032472,0.79711,2506.9,2506.8,0.86848351]
[1749228032673,19.49811,2506.9,2506.8,0.07133351]
[1749228033986,22.70591,2506.9,2506.8,0.07133351]
[1749228035779,0.79727,2506.4,2506.3,0.6279]
[1749228035983,5.77527,2506.4,2506.3,0.6279]
[1749228038280,0.7973,2506.3,2506.2,0.6403]
[1749228039277,0.7973,2506.3,2506.0,0.643]
[1749228039278,0.79737,2506.1,2506.0,0.643]
[1749228041177,0.79758,2505.5,2505.4,3.2078]
[1749228041377,0.79756,2505.5,2505.4,4.00538]
[1749228041678,0.79756,2505.5,2505.4,8.2078]
[1749228041883,0.79756,2505.5,2505.4,3.23141861]
[1749228042079,0.00597419,2506.3,2506.2,0.79734]
[1749228042482,0.80327419,2506.3,2506.2,0.79734]
[1749228042785,3.95865576,2507.6,2506.2,11.2946]
[1749228042987,3.2078,2507.9,2507.3,3.2078]
[1749228043187,0.79693,2507.5,2507.4,0.6324]
[1749228043382,4.979,2507.6,2507.5,0.79693]
[1749228043683,0.79674,2508.1,2507.5,0.79693]
[1749228043684,3.2078,2508.2,2507.5,6.99232]
[1749228043881,3.95865576,2508.9,2508.1,3.2078]
[1749228043882,3.2078,2508.9,2508.1,3.2078]
[1749228044188,0.79657,2508.6,2508.5,0.02361861]
[1749228044377,0.7968,2507.9,2507.7,1.3156]
[1749228044580,4.979,2508.2,2507.7,1.3156]
[1749228044780,0.79681,2507.9,2507.7,1.3156]
[1749228044979,0.77320278,2507.8,2507.7,1.3156]
[1749228045176,4.979,2508.1,2507.7,1.3156]
[1749228045383,0.79681,2507.9,2507.7,1.3156]
[1749228045888,0.79683,2507.8,2507.7,1.3156]
[1749228046085,4.979,2508.1,2507.7,1.3156]
[1749228046282,0.79683,2507.8,2507.7,1.3156]
[1749228046485,0.79686,2507.7,2507.6,0.00598623]
[1749228046683,0.79685,2507.8,2507.6,0.00598623]
[1749228046879,0.79686,2507.7,2507.6,0.00598623]
[1749228051094,0.79686,2507.7,2507.6,0.07731974]
[1749228051288,5.79186,2507.7,2507.6,0.07731974]
[1749228060101,24.48786,2507.7,2507.6,0.07731974]
[1749228061302,27.69566,2507.7,2507.6,0.07731974]
[1749228061898,0.79707,2507.2,2507.1,0.6663]
[1749228062598,0.79723,2506.7,2506.6,1.2578]
[1749228062805,0.79723,2506.7,2506.6,1.9241]
[1749228063305,0.79723,2506.7,2506.6,0.6663]
[1749228063802,0.79724,2506.7,2506.6,1.46355]
[1749228063994,0.00598623,2506.9,2506.6,1.9813]
[1749228064197,0.00598623,2506.9,2506.8,4.005]
[1749228064703,0.80315623,2506.9,2506.8,9.005]
[1749228065406,0.80315623,2506.9,2506.8,4.005]
[1749228065703,0.00598623,2506.9,2506.8,4.005]
[1749228067601,0.00598623,2506.9,2506.8,9.005]
[1749228067911,0.79701,2507.4,2507.3,0.79701]
[1749228068201,4.995,2507.5,2507.3,3.2078]
[1749228068394,0.79701,2507.4,2507.3,3.2078]
[1749228068601,0.79711,2507.1,2507.0,3.2078]
[1749228068801,0.79709,2507.3,2507.2,0.79705]
[1749228069004,0.79708,2507.2,2507.1,1.43058]
[1749228069204,0.79708,2507.2,2507.1,0.6335]
[1749228070401,0.79711,2507.1,2507.0,0.00598623]
[1749228071204,5.79211,2507.1,2507.0,0.00598623]
[1749228071405,7.13751,2507.1,2507.0,0.00598623]
[1749228071908,0.79723,2506.7,2506.6,0.07133351]
[1749228075812,5.79223,2506.7,2506.6,0.07133351]
[1749228076611,5.79223,2506.7,2506.6,0.86860351]
[1749228076807,0.6751,2507.0,2506.6,0.07133351]
[1749228077007,0.79719,2506.9,2506.8,0.79718]
[1749228077609,0.7972,2506.8,2506.7,1.47001]
[1749228077810,0.7972,2506.8,2506.7,0.6728]
[1749228078210,0.79723,2506.7,2506.6,0.07133351]
[1749228079515,0.79727,2506.6,2506.5,0.7973]
[1749228079710,0.7973,2506.5,2506.4,1.44352]
[1749228080316,0.79729,2506.6,2506.5,0.79727]
[1749228080516,0.79726,2506.7,2506.6,0.79723]
[1749228081713,0.7973,2506.6,2506.5,0.79727]
[1749228082215,3.2078,2506.9,2506.4,2.63946]
[1749228082416,3.2078,2506.9,2506.5,0.79728]
[1749228082417,0.7973,2506.6,2506.5,0.79728]
[1749228084221,0.7973,2506.5,2506.4,1.44351]
[1749228085318,3.38071,2506.8,2506.3,3.2078]
[1749228085319,0.79733,2506.4,2506.3,3.2078]
[1749228085619,0.79733,2506.4,2506.3,4.00516]
[1749228086020,0.79733,2506.4,2506.3,3.2078]
[1749228086215,0.79736,2506.3,2506.2,0.6675]
[1749228086922,0.79736,2506.3,2506.2,1.4649]
[1749228087422,0.79736,2506.3,2506.2,0.6675]
[1749228087617,0.79736,2506.3,2506.2,1.4649]
[1749228088920,3.2078,2506.6,2506.5,0.7973]
[1749228089121,0.79727,2506.6,2506.5,0.7973]
[1749228089321,0.79726,2506.7,2506.6,0.79724]
[1749228089824,0.79725,2506.7,2506.6,0.79725]
[1749228090220,5.77121,2506.8,2506.7,0.79724]
[1749228090418,4.974,2506.8,2506.7,0.79724]
[1749228090620,5.7712,2506.8,2506.7,0.86857351]
[1749228091521,5.7712,2506.8,2506.7,0.07133351]
[1749228091718,7.0415,2506.8,2506.7,0.07133351]
[1749228092024,10.2493,2506.8,2506.7,0.07133351]
[1749228092524,10.2493,2506.8,2505.9,0.79748]
[1749228092525,0.79749,2506.0,2505.9,0.79748]
[1749228092719,0.79751,2505.9,2505.8,0.7975]
[1749228092929,6.96661,2506.1,2505.7,3.2078]
[1749228093125,0.7975,2505.9,2505.8,0.79749]
[1749228093524,0.79755,2505.8,2505.7,0.79754]
[1749228093926,0.7975,2505.9,2505.8,0.79749]
[1749228094327,0.79753,2505.8,2505.7,0.79753]
[1749228094824,0.79751,2505.9,2505.8,0.7975]
[1749228095928,2.06778,2506.0,2505.9,0.79749]
[1749228096426,0.79752,2505.9,2505.8,0.7975]
[1749228097623,0.79752,2505.8,2505.7,0.86887351]
[1749228097828,0.79751,2505.9,2505.8,0.79749]
[1749228098028,0.79751,2505.9,2505.7,0.07133351]
[1749228098029,0.79747,2506.0,2505.9,0.79749]
[1749228099028,8.97924,2506.1,2506.0,0.79746]
[1749228099229,8.1818,2506.1,2506.0,0.79746]
[1749228099423,0.00598623,2506.2,2506.1,0.79743]
[1749228099726,0.00598623,2506.2,2506.1,1.48653]
[1749228099927,0.00598623,2506.2,2506.1,3.39893]
[1749228100626,0.00598623,2506.2,2506.1,2.12363]
[1749228101028,0.00598623,2506.2,2506.1,1.3262]
[1749228101226,0.80338623,2506.2,2506.1,1.3262]
[1749228101426,0.80338623,2506.2,2506.1,0.6891]
[1749228101628,0.79743,2506.1,2505.9,0.79746]
[1749228101821,0.79747,2506.0,2505.8,0.6777]
[1749228102031,0.79747,2506.0,2505.8,1.47521]
[1749228102327,0.79749,2505.9,2505.8,1.47522]
[1749228102524,0.79746,2506.0,2505.8,1.4752]
[1749228102727,0.79746,2506.0,2505.8,0.6777]
[1749228102918,0.79746,2506.0,2505.8,1.4752]
[1749228103632,6.46515,2506.1,2505.9,0.79749]
[1749228103826,5.77145,2506.1,2505.8,0.6777]
[1749228104020,0.79746,2506.0,2505.8,0.6777]
[1749228104232,0.79746,2506.0,2505.8,1.4752]
[1749228105328,0.79749,2505.9,2505.8,1.4752]
[1749228105537,0.79747,2506.0,2505.9,0.79749]
[1749228105738,0.79749,2505.9,2505.8,0.6777]
[1749228106629,0.79752,2505.8,2505.7,3.27913351]
[1749228106832,3.2078,2505.9,2504.5,3.2078]
[1749228107036,1.99426,2505.3,2504.8,0.79783]
[1749228107336,4.00563,2504.9,2504.6,1.3576]
[1749228107528,4.971,2504.8,2504.7,0.79784]
[1749228108345,5.76884,2504.8,2504.7,0.79784]
[1749228108645,0.79788,2504.7,2504.6,2.1555]
[1749228108942,5.76887,2504.8,2504.7,0.79788]
[1749228109244,0.79788,2504.7,2504.6,2.15549]
[1749228110440,4.971,2504.8,2504.6,2.15549]
[1749228110441,5.76887,2504.8,2504.7,0.79788]
[1749228110944,5.76887,2504.8,2504.7,0.86921351]
[1749228112338,5.76887,2504.8,2504.7,0.07133351]
[1749228113146,5.76887,2504.8,2504.7,0.86921351]
[1749228113845,4.971,2504.8,2504.7,0.86921351]
[1749228114040,5.76885,2504.8,2504.7,0.86921351]
[1749228115746,4.971,2504.8,2504.7,0.86921351]
[1749228116344,5.76885,2504.8,2504.7,0.86921351]
[1749228116543,4.971,2504.8,2504.7,0.86921351]
[1749228117141,5.76884,2504.8,2504.7,0.86921351]
[1749228118148,4.971,2504.8,2504.7,0.86921351]
[1749228118751,5.76884,2504.8,2504.7,0.86921351]
[1749228119346,4.971,2504.8,2504.7,0.86921351]
[1749228119646,4.971,2504.8,2504.7,0.86920351]
[1749228119848,5.76884,2504.8,2504.7,0.86920351]
[1749228122154,5.76884,2504.8,2504.7,0.07133351]
[1749228123053,7.11394,2504.8,2504.7,0.07133351]
[1749228126752,0.79797,2504.4,2504.3,0.676]
[1749228126952,8.1808,2504.4,2504.3,1.474]
[1749228127252,8.97877,2504.4,2504.3,1.474]
[1749228127756,8.97877,2504.4,2504.3,0.676]
[1749228128148,10.1758,2504.4,2504.0,0.6952]
[1749228128454,0.79807,2504.1,2504.0,0.6952]
[1749228128651,3.2078,2504.1,2503.8,0.79815]
[1749228128846,0.79815,2503.9,2503.8,0.79816]
[1749228129047,0.79819,2503.7,2503.6,1.3255]
[1749228129352,1.99557,2503.6,2502.7,3.18446449]
[1749228129650,3.21378623,2503.4,2503.3,0.79832]
[1749228129953,0.00598623,2503.4,2503.3,0.79832]
[1749228130147,0.00598623,2503.4,2503.3,5.79832]
[1749228130552,4.974,2503.8,2503.7,0.79819]
[1749228130858,4.974,2503.8,2503.4,3.28581]
[1749228131152,4.974,2503.8,2503.7,0.79819]
[1749228131353,5.77216,2503.8,2503.7,0.79819]
[1749228132157,0.00598623,2504.0,2503.9,0.79813]
[1749228133554,0.00598623,2504.0,2503.9,5.79813]
[1749228133960,0.00598623,2504.0,2503.9,9.00593]
[1749228134559,0.00598623,2504.0,2503.9,4.00593]
[1749228135155,0.00598623,2504.0,2503.9,0.79813]
[1749228137761,3.21378623,2504.0,2503.6,0.6492]
[1749228138063,4.01191623,2504.0,2503.9,0.79813]
[1749228138255,0.79819,2503.7,2503.6,1.4474]
[1749228138764,0.79823,2503.6,2503.5,0.00598623]
[1749228139368,2.16073,2503.6,2503.5,0.00598623]
[1749228140262,3.2078,2503.7,2503.5,0.00598623]
[1749228140564,3.2078,2503.7,2503.6,0.79823]
[1749228141070,4.971,2503.8,2503.7,0.79819]
[1749228141364,0.79821,2503.7,2503.6,0.79821]
[1749228141565,4.971,2503.8,2503.7,0.79819]
[1749228141863,5.76916,2503.8,2503.7,0.79819]
[1749228142163,19.50415,2503.9,2503.8,0.79816]
[1749228142363,4.01188623,2504.0,2503.9,0.86946351]
[1749228142871,3.21378623,2504.0,2503.9,0.86946351]
[1749228143072,26.88978623,2504.0,2503.9,0.86946351]
[1749228143571,26.89078623,2504.0,2503.9,0.86946351]
[1749228143869,27.68889623,2504.0,2503.9,0.07133351]
[1749228151579,0.79824,2503.6,2503.5,0.00598623]
[1749228151775,5.77024,2503.6,2503.5,0.80425623]
[1749228152278,5.77024,2503.6,2503.5,0.00598623]
[1749228152876,7.06464,2503.6,2503.5,0.00598623]
[1749228153576,7.06464,2503.6,2503.5,0.80425623]
[1749228153779,23.678,2503.6,2503.5,0.80425623]
[1749228153973,8.18578623,2504.0,2503.9,0.79813]
[1749228154178,26.89178623,2504.0,2503.9,0.79813]
[1749228155173,24.48208623,2504.0,2503.9,0.79813]
[1749228155374,27.68888623,2504.0,2503.9,0.79813]
[1749228155782,26.89078623,2504.0,2503.9,0.79813]
[1749228156178,26.89078623,2504.0,2503.8,2.07114]
[1749228156179,0.79814,2503.9,2503.8,2.07114]
[1749228156686,24.48111623,2504.0,2503.9,0.79814]
[1749228157481,23.68298623,2504.0,2503.9,0.79814]
[1749228157886,24.48108623,2504.0,2503.9,0.79814]
[1749228158078,0.00598623,2504.0,2503.9,0.79814]
[1749228158284,0.00598623,2504.0,2503.9,2.10944]
[1749228160084,0.80408623,2504.0,2503.9,2.10944]
[1749228160480,0.80408623,2504.0,2503.9,0.79814]
[1749228160682,0.79814,2503.9,2503.8,2.07114]
[1749228160985,0.80411623,2504.0,2503.9,0.79815]
[1749228161591,4.01191623,2504.0,2503.9,0.79815]
[1749228161885,3.2078,2504.0,2503.9,0.79815]
[1749228162079,3.2078,2504.9,2504.2,1.99514]
[1749228162279,3.2078,2504.9,2504.3,3.16191901]
[1749228162484,0.79795,2504.6,2504.5,0.79795]
[1749228162684,0.79799,2504.5,2504.4,0.79798]
[1749228162889,0.79797,2504.5,2504.4,0.79796]
[1749228163088,0.79795,2504.6,2504.5,0.79793]
[1749228163384,5.76894,2504.6,2504.5,0.79793]
[1749228163586,4.971,2504.6,2504.5,0.79793]
[1749228163783,5.76893,2504.6,2504.5,0.79793]
[1749228163983,7.02733,2504.6,2504.5,0.79793]
[1749228164188,0.79797,2504.5,2504.4,0.79797]
[1749228164988,6.2294,2504.6,2504.3,0.798]
[1749228164989,0.79802,2504.4,2504.3,0.798]
[1749228165989,0.79804,2504.3,2504.2,0.79803]
[1749228166293,0.79801,2504.4,2504.3,0.798]
[1749228166497,0.79805,2504.2,2504.1,2.07327]
[1749228166886,5.76905,2504.2,2504.1,0.6299]
[1749228167193,0.7981,2504.1,2504.0,0.79809]
[1749228168792,5.20287,2504.3,2504.1,0.79809]
[1749228168793,3.2078,2504.3,2504.1,0.79809]
[1749228169094,23.668,2504.2,2504.1,0.79809]
[1749228169294,24.46605,2504.2,2504.1,0.79809]
[1749228169592,4.00584,2504.3,2504.2,0.79805]
[1749228169791,0.79807,2504.2,2504.1,0.79806]
[1749228170995,0.79808,2504.1,2504.0,0.07133351]
[1749228173796,0.79808,2504.1,2504.0,0.86945351]
[1749228173998,0.79808,2504.1,2504.0,0.07133351]
[1749228179896,24.46708,2504.1,2504.0,0.07133351]
[1749228182405,0.79808,2504.1,2504.0,0.07133351]
[1749228182707,24.46808,2504.1,2504.0,0.07133351]
[1749228184508,0.79808,2504.1,2504.0,0.07133351]